fUST/lending_fUST_20240725
["ID","MTS","AMOUNT","RATE_DAILY","PERIOD"]
[333116902,1721875849066,-963.8,0.00013698,2]
[333116903,1721875849076,-151.0,0.00013698,2]
[333116904,1721875849086,-151.0,0.00013698,2]
[333116905,1721875849097,-151.0,0.00013698,2]
[333116906,1721875849107,-1124.26,0.00013698,2]
[333116907,1721875849118,-151.0,0.00013698,2]
[333116908,1721875849128,-151.0,0.00013698,2]
[333116909,1721875849138,-151.0,0.00013698,2]
[333116910,1721875849148,-500.0,0.00013698,2]
[333116911,1721875849158,-500.0,0.00013698,2]
[333116912,1721875849168,-500.0,0.00013698,2]
[333116913,1721875849177,-500.0,0.00013698,2]
[333116914,1721875849188,-500.0,0.00013698,2]
[333116915,1721875849197,-500.0,0.00013698,2]
[333116916,1721875849208,-720.77,0.00013698,2]
[333116917,1721875849220,-500.0,0.00013698,2]
[333116918,1721875849230,-530.82,0.00013698,2]
[333116919,1721875849244,-500.0,0.00013698,2]
[333116920,1721875849255,-500.0,0.00013698,2]
[333116921,1721875849266,-500.0,0.00013698,2]
[333116922,1721875849281,-500.0,0.00013698,2]
[333116923,1721875849292,-517.0575489,0.00013698,2]
[333116924,1721875849302,-506.06373272,0.00013698,2]
[333116925,1721875849314,-500.0,0.00013698,2]
[333116926,1721875849324,-500.0,0.00013698,2]
[333116927,1721875849334,-500.0,0.00013698,2]
[333116928,1721875849344,-312.11149191,0.00013698,2]
[333116929,1721875849354,-500.0,0.00013698,2]
[333116930,1721875849366,-500.0,0.00013698,2]
[333116931,1721875849377,-553.69915875,0.00013698,2]
[333116932,1721875849388,-1549.36,0.00013698,2]
[333116933,1721875849399,-500.0,0.00013698,2]
[333116934,1721875849410,-500.0,0.00013698,2]
[333116935,1721875849421,-500.0,0.00013698,2]
[333116936,1721875849432,-500.0,0.00013698,2]
[333116937,1721875849443,-500.0,0.00013698,2]
[333116938,1721875849455,-503.92874033,0.00013698,2]
[333116939,1721875849466,-500.0,0.00013698,2]
[333116940,1721875849476,-387.4077182,0.00013698,2]
[333116941,1721875849488,-500.0,0.00013698,2]
[333116942,1721875849498,-632.97,0.00013698,2]
[333116943,1721875849510,-500.0,0.00013698,2]
[333116944,1721875849521,-500.0,0.00013698,2]
[333116945,1721875849536,-500.0,0.00013698,2]
[333116946,1721875849545,-500.0,0.00013698,2]
[333116947,1721875849555,-563.05,0.00013698,2]
[333116948,1721875849564,-500.0,0.00013698,2]
[333116949,1721875849573,-597.79627496,0.00013698,2]
[333116950,1721875849582,-500.0,0.00013698,2]
[333116951,1721875849592,-1059.71,0.00013698,2]
[333116952,1721875849602,-500.0,0.00013698,2]
[333116953,1721875849613,-500.0,0.00013698,2]
[333116954,1721875849623,-500.0,0.00013698,2]
[333116955,1721875849633,-500.0,0.00013698,2]
[333116956,1721875849643,-500.0,0.00013698,2]
[333116957,1721875849654,-500.0,0.00013698,2]
[333116958,1721875849664,-500.0,0.00013698,2]
[333116959,1721875849674,-500.0,0.00013698,2]
[333116960,1721875849684,-401.10059859,0.00013698,2]
[333116961,1721875849695,-504.76251632,0.00013698,2]
[333116962,1721875849705,-500.0,0.00013698,2]
[333116963,1721875849715,-500.0,0.00013698,2]
[333116964,1721875849726,-514.99738413,0.00013698,2]
[333116965,1721875849736,-500.0,0.00013698,2]
[333116966,1721875849747,-500.0,0.00013698,2]
[333116967,1721875849757,-604.43595771,0.00013698,2]
[333116968,1721875849768,-500.0,0.00013698,2]
[333116969,1721875849784,-500.0,0.00013698,2]
[333116970,1721875849794,-500.0,0.00013698,2]
[333116971,1721875849806,-500.0,0.00013698,2]
[333116972,1721875849817,-514.3133061,0.00013698,2]
[333116973,1721875849828,-500.0,0.00013698,2]
[333116974,1721875849839,-500.0,0.00013698,2]
[333116975,1721875849849,-500.0,0.00013698,2]
[333116976,1721875849860,-500.0,0.00013698,2]
[333116977,1721875849872,-706.74,0.00013698,2]
[333116978,1721875849882,-500.0,0.00013698,2]
[333116979,1721875849893,-500.0,0.00013698,2]
[333116980,1721875849902,-1723.16,0.00013698,2]
[333116981,1721875849912,-503.09709382,0.00013698,2]
[333116982,1721875849922,-500.0,0.00013698,2]
[333116983,1721875849935,-248.14040933,0.00013698,2]
[333116984,1721875849946,-151.484103,0.00013698,2]
[333116985,1721875849957,-500.0,0.00013698,2]
[333116986,1721875849967,-828.04,0.00013698,2]
[333116987,1721875849977,-500.91499377,0.00013698,2]
[333116988,1721875849987,-500.0,0.00013698,2]
[333116989,1721875849997,-500.0,0.00013698,2]
[333116990,1721875850007,-151.0,0.00013698,2]
[333116991,1721875850017,-152.394442,0.00013698,2]
[333116992,1721875850030,-500.0,0.00013698,2]
[333116993,1721875850040,-500.0,0.00013698,2]
[333116994,1721875850052,-1732.92,0.00013698,2]
[333116995,1721875850062,-500.0,0.00013698,2]
[333116996,1721875850073,-518.50448163,0.00013698,2]
[333116997,1721875850084,-503.38113605,0.00013698,2]
[333116998,1721875850095,-500.0,0.00013698,2]
[333116999,1721875850107,-500.0,0.00013698,2]
[333117000,1721875850118,-500.0,0.00013698,2]
[333117001,1721875850130,-495.940654,0.00013698,2]
[333117002,1721875850140,-495.940654,0.00013698,2]
[333117003,1721875850151,-495.940654,0.00013698,2]
[333117004,1721875850161,-500.0,0.00013698,2]
[333117005,1721875850172,-510.96,0.00013698,2]
[333117006,1721875850181,-495.940654,0.00013698,2]
[333117007,1721875850191,-500.0,0.00013698,2]
[333117008,1721875850201,-495.940654,0.00013698,2]
[333117009,1721875850210,-495.940654,0.00013698,2]
[333117010,1721875850220,-500.0,0.00013698,2]
[333117011,1721875850231,-500.0,0.00013698,2]
[333117012,1721875850246,-500.0,0.00013698,2]
[333117013,1721875850256,-386.320975,0.00013698,2]
[333117014,1721875850266,-386.320975,0.00013698,2]
[333117015,1721875850280,-386.320975,0.00013698,2]
[333117016,1721875850289,-756.35,0.00013698,2]
[333117017,1721875850298,-503.93206134,0.00013698,2]
[333117018,1721875850309,-1202.59,0.00013698,2]
[333117019,1721875850319,-386.320975,0.00013698,2]
[333117020,1721875850329,-386.320975,0.00013698,2]
[333117021,1721875850338,-500.0,0.00013698,2]
[333117022,1721875850349,-500.0,0.00013698,2]
[333117023,1721875850359,-386.320975,0.00013698,2]
[333117024,1721875850369,-508.17548382,0.00013698,2]
[333117025,1721875850379,-500.0,0.00013698,2]
[333117026,1721875850390,-583.36,0.00013698,2]
[333117027,1721875850402,-903.931969,0.00013698,2]
[333117028,1721875850413,-1428.01,0.00013698,2]
[333117029,1721875850424,-903.931969,0.00013698,2]
[333117030,1721875850435,-903.931969,0.00013698,2]
[333117031,1721875850446,-903.931969,0.00013698,2]
[333117032,1721875850458,-500.0,0.00013698,2]
[333117033,1721875850469,-500.0,0.00013698,2]
[333117034,1721875850478,-903.931969,0.00013698,2]
[333117035,1721875850488,-903.931969,0.00013698,2]
[333117036,1721875850498,-500.0,0.00013698,2]
[333117037,1721875850507,-903.931969,0.00013698,2]
[333117038,1721875850517,-903.931969,0.00013698,2]
[333117039,1721875850532,-500.0,0.00013698,2]
[333117040,1721875850544,-500.0,0.00013698,2]
[333117041,1721875850554,-151.0,0.00013698,2]
[333117042,1721875850565,-151.0,0.00013698,2]
[333117043,1721875850575,-151.0,0.00013698,2]
[333117044,1721875850586,-500.0,0.00013698,2]
[333117045,1721875850596,-151.0,0.00013698,2]
[333117046,1721875850608,-151.0,0.00013698,2]
[333117047,1721875850619,-222.040332,0.00013698,2]
[333117048,1721875850629,-500.0,0.00013698,2]
[333117049,1721875850639,-1160.8,0.00013698,2]
[333117050,1721875850652,-1625.12,0.00013698,2]
[333117051,1721875850663,-470.45870019,0.00013698,2]
[333117052,1721875850674,-500.0,0.00013698,2]
[333117053,1721875850685,-500.0,0.00013698,2]
[333117054,1721875850696,-500.0,0.00013698,2]
[333117055,1721875850706,-510.88141188,0.00013698,2]
[333117056,1721875850717,-500.0,0.00013698,2]
[333117057,1721875850729,-450.070613,0.00013698,2]
[333117058,1721875850739,-450.070613,0.00013698,2]
[333117059,1721875850751,-508.08,0.00013698,2]
[333117060,1721875850761,-450.070613,0.00013698,2]
[333117061,1721875850771,-450.070613,0.00013698,2]
[333117062,1721875850786,-450.070613,0.00013698,2]
[333117063,1721875850796,-344.630329,0.00013698,2]
[333117064,1721875850807,-344.630329,0.00013698,2]
[333117065,1721875850818,-500.0,0.00013698,2]
[333117066,1721875850829,-344.630329,0.00013698,2]
[333117067,1721875850840,-344.630329,0.00013698,2]
[333117068,1721875850850,-450.070613,0.00013698,2]
[333117069,1721875850861,-344.630329,0.00013698,2]
[333117070,1721875850871,-450.070613,0.00013698,2]
[333117071,1721875850881,-450.070613,0.00013698,2]
[333117072,1721875850892,-450.070613,0.00013698,2]
[333117073,1721875850902,-450.070613,0.00013698,2]
[333117074,1721875850911,-500.0,0.00013698,2]
[333117075,1721875850923,-500.0,0.00013698,2]
[333117076,1721875850933,-344.630329,0.00013698,2]
[333117077,1721875850944,-500.0,0.00013698,2]
[333117078,1721875850955,-344.630329,0.00013698,2]
[333117079,1721875850966,-344.630329,0.00013698,2]
[333117080,1721875850976,-344.630329,0.00013698,2]
[333117081,1721875850985,-344.630329,0.00013698,2]
[333117082,1721875850995,-1326.689836,0.00013698,2]
[333117083,1721875851005,-500.0,0.00013698,2]
[333117084,1721875851014,-1326.689836,0.00013698,2]
[333117085,1721875851025,-500.0,0.00013698,2]
[333117086,1721875851033,-500.0,0.00013698,2]
[333117087,1721875851044,-1326.689836,0.00013698,2]
[333117088,1721875851052,-500.0,0.00013698,2]
[333117089,1721875851062,-1326.689836,0.00013698,2]
[333117090,1721875851071,-500.0,0.00013698,2]
[333117091,1721875851230,-500.0,0.00013698,2]
[333117092,1721875851241,-1326.689836,0.00013698,2]
[333117093,1721875851251,-500.0,0.00013698,2]
[333117094,1721875851260,-500.0,0.00013698,2]
[333117095,1721875851271,-291.4099455,0.00013698,2]
[333117096,1721875851284,-1326.689836,0.00013698,2]
[333117097,1721875851298,-500.0,0.00013698,2]
[333117098,1721875851308,-1326.689836,0.00013698,2]
[333117099,1721875851319,-1326.689836,0.00013698,2]
[333117100,1721875851330,-500.0,0.00013698,2]
[333117101,1721875851339,-1326.689836,0.00013698,2]
[333117102,1721875851348,-1326.689836,0.00013698,2]
[333117103,1721875851358,-509.68290829,0.00013698,2]
[333117104,1721875851367,-500.0,0.00013698,2]
[333117105,1721875851376,-500.0,0.00013698,2]
[333117106,1721875851385,-500.0,0.00013698,2]
[333117107,1721875851394,-500.0,0.00013698,2]
[333117108,1721875851403,-500.0,0.00013698,2]
[333117109,1721875851412,-500.0,0.00013698,2]
[333117110,1721875851422,-1901.26,0.00013698,2]
[333117111,1721875851431,-500.0,0.00013698,2]
[333117112,1721875851441,-500.0,0.00013698,2]
[333117113,1721875851451,-1558.68,0.00013698,2]
[333117114,1721875851460,-500.0,0.00013698,2]
[333117115,1721875851470,-500.0,0.00013698,2]
[333117116,1721875851479,-342.39327777,0.00013698,2]
[333117117,1721875851489,-500.0,0.00013698,2]
[333117118,1721875851498,-500.91887371,0.00013698,2]
[333117119,1721875851508,-504.96760302,0.00013698,2]
[333117120,1721875851518,-500.0,0.00013698,2]
[333117121,1721875851533,-500.0,0.00013698,2]
[333117122,1721875851542,-500.0,0.00013698,2]
[333117123,1721875851552,-500.78322809,0.00013698,2]
[333117124,1721875851562,-500.0,0.00013698,2]
[333117125,1721875851571,-500.0,0.00013698,2]
[333117126,1721875851581,-500.0,0.00013698,2]
[333117127,1721875851591,-500.0,0.00013698,2]
[333117128,1721875851600,-152.748755,0.00013698,2]
[333117129,1721875851610,-607.48,0.00013698,2]
[333117130,1721875851619,-502.51931358,0.00013698,2]
[333117131,1721875851629,-500.0,0.00013698,2]
[333117132,1721875851639,-2230.471712,0.00013698,2]
[333117133,1721875851649,-501.9122577,0.00013698,2]
[333117134,1721875851658,-2230.471712,0.00013698,2]
[333117135,1721875851668,-500.0,0.00013698,2]
[333117136,1721875851677,-2230.471712,0.00013698,2]
[333117137,1721875851687,-2230.471712,0.00013698,2]
[333117138,1721875851696,-2230.471712,0.00013698,2]
[333117139,1721875851705,-2230.471712,0.00013698,2]
[333117140,1721875851715,-2230.471712,0.00013698,2]
[333117141,1721875851726,-2230.471712,0.00013698,2]
[333117142,1721875851737,-500.0,0.00013698,2]
[333117143,1721875851750,-2230.471712,0.00013698,2]
[333117144,1721875851761,-500.0,0.00013698,2]
[333117145,1721875851770,-2230.471712,0.00013698,2]
[333117146,1721875851791,-500.0,0.00013698,2]
[333117147,1721875851802,-523.5234044,0.00013698,2]
[333117148,1721875851812,-500.0,0.00013698,2]
[333117149,1721875851825,-500.0,0.00013698,2]
[333117150,1721875851835,-500.0,0.00013698,2]
[333117151,1721875851845,-501.15802406,0.00013698,2]
[333117152,1721875851857,-152.804714,0.00013698,2]
[333117153,1721875851868,-500.0,0.00013698,2]
[333117154,1721875851879,-515.5717561,0.00013698,2]
[333117155,1721875851891,-500.0,0.00013698,2]
[333117156,1721875851902,-500.0,0.00013698,2]
[333117157,1721875851913,-500.0,0.00013698,2]
[333117158,1721875851924,-500.0,0.00013698,2]
[333117159,1721875851935,-504.15604664,0.00013698,2]
[333117160,1721875851944,-500.0,0.00013698,2]
[333117161,1721875851956,-500.0,0.00013698,2]
[333117162,1721875851966,-500.0,0.00013698,2]
[333117163,1721875851978,-500.0,0.00013698,2]
[333117164,1721875851991,-500.0,0.00013698,2]
[333117165,1721875852002,-503.14607474,0.00013698,2]
[333117166,1721875852014,-500.0,0.00013698,2]
[333117167,1721875852027,-505.17789881,0.00013698,2]
[333117168,1721875852039,-1057.56,0.00013698,2]
[333117169,1721875852049,-1114.59,0.00013698,2]
[333117170,1721875852060,-500.0,0.00013698,2]
[333117171,1721875852071,-320.57883026,0.00013698,2]
[333117172,1721875852082,-151.0,0.00013698,2]
[333117173,1721875852093,-151.0,0.00013698,2]
[333117174,1721875852104,-506.50917753,0.00013698,2]
[333117175,1721875852115,-151.0,0.00013698,2]
[333117176,1721875852126,-500.0,0.00013698,2]
[333117177,1721875852137,-159.790222,0.00013698,2]
[333117178,1721875852148,-500.0,0.00013698,2]
[333117179,1721875852160,-500.0,0.00013698,2]
[333117180,1721875852172,-500.0,0.00013698,2]
[333117181,1721875852184,-500.0,0.00013698,2]
[333117182,1721875852195,-500.0,0.00013698,2]
[333117183,1721875852205,-588.67506839,0.00013698,2]
[333117184,1721875852215,-500.93661461,0.00013698,2]
[333117185,1721875852225,-500.0,0.00013698,2]
[333117186,1721875852239,-151.0,0.00013698,2]
[333117187,1721875852250,-500.0,0.00013698,2]
[333117188,1721875852262,-244.270349,0.00013698,2]
[333117189,1721875852271,-500.0,0.00013698,2]
[333117190,1721875852286,-500.0,0.00013698,2]
[333117191,1721875852296,-507.41557099,0.00013698,2]
[333117192,1721875852309,-500.0,0.00013698,2]
[333117193,1721875852320,-500.0,0.00013698,2]
[333117194,1721875852331,-503.52477032,0.00013698,2]
[333117195,1721875852342,-3336.48,0.00013698,2]
[333117196,1721875852352,-500.0,0.00013698,2]
[333117197,1721875852363,-500.0,0.00013698,2]
[333117198,1721875852374,-500.0,0.00013698,2]
[333117199,1721875852385,-554.3,0.00013698,2]
[333117200,1721875852396,-516.27634036,0.00013698,2]
[333117201,1721875852407,-502.19483262,0.00013698,2]
[333117202,1721875852418,-500.0,0.00013698,2]
[333117203,1721875852428,-1348.15,0.00013698,2]
[333117204,1721875852438,-500.0,0.00013698,2]
[333117205,1721875852449,-501.92552862,0.00013698,2]
[333117206,1721875852458,-500.0,0.00013698,2]
[333117207,1721875852468,-500.0,0.00013698,2]
[333117208,1721875852477,-500.0,0.00013698,2]
[333117209,1721875852486,-899.48,0.00013698,2]
[333117210,1721875852495,-500.0,0.00013698,2]
[333117211,1721875852505,-500.0,0.00013698,2]
[333117212,1721875852515,-500.0,0.00013698,2]
[333117213,1721875852526,-500.0,0.00013698,2]
[333117214,1721875852535,-500.0,0.00013698,2]
[333117215,1721875852544,-500.0,0.00013698,2]
[333117216,1721875852553,-500.0,0.00013698,2]
[333117217,1721875852562,-500.0,0.00013698,2]
[333117218,1721875852571,-506.17,0.00013698,2]
[333117219,1721875852581,-620.85401366,0.00013698,2]
[333117220,1721875852590,-500.0,0.00013698,2]
[333117221,1721875852600,-500.0,0.00013698,2]
[333117222,1721875852609,-500.0,0.00013698,2]
[333117223,1721875852619,-3664.09,0.00013698,2]
[333117224,1721875852628,-151.0,0.00013698,2]
[333117225,1721875852638,-505.76849599,0.00013698,2]
[333117226,1721875852648,-151.0,0.00013698,2]
[333117227,1721875852657,-500.0,0.00013698,2]
[333117228,1721875852667,-506.04257908,0.00013698,2]
[333117229,1721875852676,-151.0,0.00013698,2]
[333117230,1721875852685,-151.0,0.00013698,2]
[333117231,1721875852695,-295.693657,0.00013698,2]
[333117232,1721875852704,-500.0,0.00013698,2]
[333117233,1721875852713,-285.60807244,0.00013698,2]
[333117234,1721875852723,-150.16969633,0.00013698,2]
[333117235,1721875852732,-151.0,0.00013698,2]
[333117236,1721875852742,-151.0,0.00013698,2]
[333117237,1721875852751,-151.0,0.00013698,2]
[333117238,1721875852760,-698.98,0.00013698,2]
[333117239,1721875852770,-151.0,0.00013698,2]
[333117240,1721875852781,-152.941486,0.00013698,2]
[333117241,1721875852790,-516.65443341,0.00013698,2]
[333117242,1721875852799,-523.73854915,0.00013698,2]
[333117243,1721875852808,-679.16,0.00013698,2]
[333117244,1721875852818,-500.0,0.00013698,2]
[333117245,1721875852827,-508.06498002,0.00013698,2]
[333117246,1721875852837,-500.0,0.00013698,2]
[333117247,1721875852847,-500.0,0.00013698,2]
[333117248,1721875852856,-500.0,0.00013698,2]
[333117249,1721875852866,-925.36,0.00013698,2]
[333117250,1721875852875,-500.0,0.00013698,2]
[333117251,1721875852885,-1588.58,0.00013698,2]
[333117252,1721875852894,-500.0,0.00013698,2]
[333117253,1721875852903,-926.04,0.00013698,2]
[333117254,1721875852912,-502.50988228,0.00013698,2]
[333117255,1721875852922,-500.0,0.00013698,2]
[333117256,1721875852932,-2325.02,0.00013698,2]
[333117257,1721875852941,-501.40667708,0.00013698,2]
[333117258,1721875852950,-500.0,0.00013698,2]
[333117259,1721875852960,-500.0,0.00013698,2]
[333117260,1721875852969,-151.0,0.00013698,2]
[333117261,1721875852978,-500.0,0.00013698,2]
[333117262,1721875852987,-151.0,0.00013698,2]
[333117263,1721875852997,-151.0,0.00013698,2]
[333117264,1721875853006,-151.0,0.00013698,2]
[333117265,1721875853015,-151.0,0.00013698,2]
[333117266,1721875853025,-151.0,0.00013698,2]
[333117267,1721875853034,-151.0,0.00013698,2]
[333117268,1721875853044,-151.0,0.00013698,2]
[333117269,1721875853053,-151.0,0.00013698,2]
[333117270,1721875853063,-151.0,0.00013698,2]
[333117271,1721875853072,-500.0,0.00013698,2]
[333117272,1721875853081,-287.909672,0.00013698,2]
[333117273,1721875853091,-2390.59,0.00013698,2]
[333117274,1721875853099,-500.0,0.00013698,2]
[333117275,1721875853109,-500.0,0.00013698,2]
[333117276,1721875853118,-500.0,0.00013698,2]
[333117277,1721875853127,-507.65999975,0.00013698,2]
[333117278,1721875853136,-500.0,0.00013698,2]
[333117279,1721875853146,-477.71357621,0.00013698,2]
[333117280,1721875853155,-450.1862276,0.00013698,2]
[333117281,1721875853164,-500.0,0.00013698,2]
[333117282,1721875853173,-500.0,0.00013698,2]
[333117283,1721875853183,-858.59,0.00013698,2]
[333117284,1721875853192,-500.0,0.00013698,2]
[333117285,1721875853201,-500.0,0.00013698,2]
[333117286,1721875853211,-500.0,0.00013698,2]
[333117287,1721875853220,-500.0,0.00013698,2]
[333117288,1721875853231,-426.71506511,0.00013698,2]
[333117289,1721875853243,-509.67259838,0.00013698,2]
[333117290,1721875853255,-4048.94,0.00013698,2]
[333117291,1721875853266,-500.0,0.00013698,2]
[333117292,1721875853279,-500.0,0.00013698,2]
[333117293,1721875853290,-666.46,0.00013698,2]
[333117294,1721875853301,-500.0,0.00013698,2]
[333117295,1721875853311,-500.0,0.00013698,2]
[333117296,1721875853322,-4149.97,0.00013698,2]
[333117297,1721875853334,-500.0,0.00013698,2]
[333117298,1721875853344,-500.0,0.00013698,2]
[333117299,1721875853355,-500.0,0.00013698,2]
[333117300,1721875853366,-500.0,0.00013698,2]
[333117301,1721875853377,-1880.94,0.00013698,2]
[333117302,1721875853387,-4693.11,0.00013698,2]
[333117303,1721875853396,-500.0,0.00013698,2]
[333117304,1721875853407,-1654.52,0.00013698,2]
[333117305,1721875853418,-500.0,0.00013698,2]
[333117306,1721875853429,-500.0,0.00013698,2]
[333117307,1721875853439,-1869.74,0.00013698,2]
[333117308,1721875853450,-576.95336741,0.00013698,2]
[333117309,1721875853461,-528.05216539,0.00013698,2]
[333117310,1721875853470,-500.0,0.00013698,2]
[333117311,1721875853480,-500.0,0.00013698,2]
[333117312,1721875853492,-500.0,0.00013698,2]
[333117313,1721875853503,-505.84585637,0.00013698,2]
[333117314,1721875853513,-500.0,0.00013698,2]
[333117315,1721875853527,-1640.52,0.00013698,2]
[333117316,1721875853537,-537.78210014,0.00013698,2]
[333117317,1721875853546,-500.0,0.00013698,2]
[333117318,1721875853556,-500.0,0.00013698,2]
[333117319,1721875853566,-151.0,0.00013698,2]
[333117320,1721875853578,-504.0078032,0.00013698,2]
[333117321,1721875853590,-151.0,0.00013698,2]
[333117322,1721875853599,-151.0,0.00013698,2]
[333117323,1721875853610,-606.84197942,0.00013698,2]
[333117324,1721875853620,-501.77730602,0.00013698,2]
[333117325,1721875853629,-151.0,0.00013698,2]
[333117326,1721875853639,-500.0,0.00013698,2]
[333117327,1721875853648,-151.0,0.00013698,2]
[333117328,1721875853658,-1106.73,0.00013698,2]
[333117329,1721875853669,-151.0,0.00013698,2]
[333117330,1721875853680,-500.0,0.00013698,2]
[333117331,1721875853690,-500.0,0.00013698,2]
[333117332,1721875853702,-151.0,0.00013698,2]
[333117333,1721875853712,-500.0,0.00013698,2]
[333117334,1721875853723,-151.0,0.00013698,2]
[333117335,1721875853734,-500.0,0.00013698,2]
[333117336,1721875853745,-222.529232,0.00013698,2]
[333117337,1721875853756,-503.81995285,0.00013698,2]
[333117338,1721875853767,-7608.89,0.00013698,2]
[333117339,1721875853778,-500.0,0.00013698,2]
[333117340,1721875853787,-500.0,0.00013698,2]
[333117341,1721875853796,-500.0,0.00013698,2]
[333117342,1721875853806,-842.55,0.00013698,2]
[333117343,1721875853815,-500.0,0.00013698,2]
[333117344,1721875853826,-500.0,0.00013698,2]
[333117345,1721875853839,-534.21421695,0.00013698,2]
[333117346,1721875853850,-682.47,0.00013698,2]
[333117347,1721875853863,-500.0,0.00013698,2]
[333117348,1721875853874,-500.0,0.00013698,2]
[333117349,1721875853885,-500.0,0.00013698,2]
[333117350,1721875853894,-500.0,0.00013698,2]
[333117351,1721875853903,-500.0,0.00013698,2]
[333117352,1721875853913,-238.101441,0.00013698,2]
[333117353,1721875853923,-238.101441,0.00013698,2]
[333117354,1721875853932,-238.101441,0.00013698,2]
[333117355,1721875853942,-500.0,0.00013698,2]
[333117356,1721875853953,-238.101441,0.00013698,2]
[333117357,1721875853964,-238.101441,0.00013698,2]
[333117358,1721875853974,-500.0,0.00013698,2]
[333117359,1721875853984,-500.0,0.00013698,2]
[333117360,1721875853994,-238.101441,0.00013698,2]
[333117361,1721875854004,-501.26026381,0.00013698,2]
[333117362,1721875854015,-238.101441,0.00013698,2]
[333117363,1721875854027,-500.0,0.00013698,2]
[333117364,1721875854038,-238.101441,0.00013698,2]
[333117365,1721875854048,-238.101441,0.00013698,2]
[333117366,1721875854059,-500.0,0.00013698,2]
[333117367,1721875854070,-273.31051623,0.00013698,2]
[333117368,1721875854080,-238.101441,0.00013698,2]
[333117369,1721875854091,-511.61544469,0.00013698,2]
[333117370,1721875854102,-500.0,0.00013698,2]
[333117371,1721875854112,-500.0,0.00013698,2]
[333117372,1721875854123,-500.0,0.00013698,2]
[333117373,1721875854133,-12644.8,0.00013698,2]
[333117374,1721875854144,-500.0,0.00013698,2]
[333117375,1721875854154,-500.0,0.00013698,2]
[333117376,1721875854165,-500.0,0.00013698,2]
[333117377,1721875854177,-1420.41,0.00013698,2]
[333117378,1721875854187,-508.16940082,0.00013698,2]
[333117379,1721875854199,-500.0,0.00013698,2]
[333117380,1721875854210,-500.0,0.00013698,2]
[333117381,1721875854221,-739.03,0.00013698,2]
[333117382,1721875854231,-500.0,0.00013698,2]
[333117383,1721875854240,-151.0,0.00013698,2]
[333117384,1721875854251,-151.0,0.00013698,2]
[333117385,1721875854261,-151.0,0.00013698,2]
[333117386,1721875854270,-605.15836936,0.00013698,2]
[333117387,1721875854283,-151.0,0.00013698,2]
[333117388,1721875854297,-151.0,0.00013698,2]
[333117389,1721875854309,-505.37685304,0.00013698,2]
[333117390,1721875854320,-2515.49,0.00013698,2]
[333117391,1721875854330,-259.462354,0.00013698,2]
[333117392,1721875854339,-500.0,0.00013698,2]
[333117393,1721875854348,-500.0,0.00013698,2]
[333117394,1721875854357,-500.0,0.00013698,2]
[333117395,1721875854367,-500.0,0.00013698,2]
[333117396,1721875854376,-914.29,0.00013698,2]
[333117397,1721875854385,-500.0,0.00013698,2]
[333117398,1721875854394,-500.0,0.00013698,2]
[333117399,1721875854405,-500.0,0.00013698,2]
[333117400,1721875854415,-4894.77,0.00013698,2]
[333117401,1721875854425,-500.0,0.00013698,2]